bitfinex/quotes_SOLUSD_20250721
["timestamp","ask_amount","ask_price","bid_price","bid_amount"]
[1753120375207,0.68,195.15,195.1,31.12550981]
[1753120375414,0.68,195.15,195.1,41.74137369]
[1753120375917,0.68,195.15,195.1,36.61586388]
[1753120376113,0.68,195.14,195.1,26.0]
[1753120376618,0.68,195.14,195.1,36.61586388]
[1753120376817,16.41986469,195.16,195.1,41.74143061]
[1753120377123,5.80400081,195.16,195.11,10.61586388]
[1753120377293,0.68,195.16,195.11,10.61586388]
[1753120377495,0.06,195.15,195.11,11.27586388]
[1753120377912,0.06,195.15,195.1,36.61586388]
[1753120378116,0.06,195.15,195.11,10.61586388]
[1753120378695,0.06,195.15,195.1,26.0]
[1753120378902,0.74,195.15,195.1,36.61586388]
[1753120379103,0.74,195.15,195.1,37.27586388]
[1753120379303,0.74,195.15,195.1,26.66]
[1753120379511,0.06,195.15,195.11,10.61586388]
[1753120380433,11.29586388,195.14,195.1,26.0]
[1753120380600,0.68,195.13,195.09,0.03]
[1753120380805,0.68,195.12,195.09,0.03]
[1753120381006,15.74043028,195.14,195.09,0.03]
[1753120381202,11.74175082,195.14,195.09,0.03]
[1753120381410,12.41175082,195.14,195.09,0.03]
[1753120381920,7.28718442,195.14,195.09,0.03]
[1753120382428,0.67,195.14,195.09,0.03]
[1753120382603,7.28718442,195.14,195.09,0.03]
[1753120382805,0.67,195.13,195.09,0.03]
[1753120383225,52.19150782,195.15,195.09,6.64718442]
[1753120383407,52.19150782,195.15,195.09,7.36718442]
[1753120383921,0.06,195.15,195.1,0.72]
[1753120384226,88.5,195.16,195.15,4.497217]
[1753120384418,0.06,195.17,195.15,4.497217]
[1753120385406,0.73,195.17,195.15,4.497217]
[1753120385609,0.67,195.16,195.15,4.497217]
[1753120386009,0.06,195.17,195.15,4.497217]
[1753120388401,0.06,195.17,195.15,9.62145396]
[1753120388602,0.06,195.17,195.16,7.33718442]
[1753120388824,0.06,195.17,195.16,24.12186839]
[1753120390002,0.06,195.17,195.16,29.2458692]
[1753120390003,1e-08,195.17,195.16,29.2458692]
[1753120391819,1e-08,195.18,195.17,16.78468397]
[1753120392143,1e-08,195.19,195.17,76.0151649]
[1753120392336,0.06,195.21,195.2,42.78468397]
[1753120392632,0.06,195.21,195.2,56.53134789]
[1753120392835,0.06,195.21,195.2,57.25134789]
[1753120393436,0.06,195.23,195.21,16.78468397]
[1753120393631,0.06,195.23,195.21,63.76186839]
[1753120394312,0.67,195.32,195.21,68.88455677]
[1753120394619,5.88940965,195.34,195.24,49.40186839]
[1753120395013,5.88940965,195.34,195.24,50.12186839]
[1753120395421,5.7899007,195.32,195.24,83.12468397]
[1753120395621,5.7899007,195.32,195.24,89.74186839]
[1753120396024,0.67,195.32,195.24,89.74186839]
[1753120396235,0.67,195.32,195.24,94.86376963]
[1753120396734,0.67,195.32,195.22,0.51224259]
[1753120396735,0.73,195.25,195.23,6.61718442]
[1753120396942,0.06,195.25,195.23,6.61718442]
[1753120397147,0.06,195.25,195.22,65.6]
[1753120397148,8.54,195.24,195.15,9.62129741]
[1753120397314,0.67,195.23,195.18,6.61718442]
[1753120397518,7.87,195.24,195.19,6.61718442]
[1753120397715,0.06,195.25,195.23,6.61718442]
[1753120397918,0.06,195.25,195.24,23.91405851]
[1753120398124,0.06,195.25,195.24,17.79687409]
[1753120398340,0.06,195.25,195.24,24.41405851]
[1753120398542,0.06,195.25,195.24,17.28468397]
[1753120398722,0.06,195.25,195.24,23.90186839]
[1753120399239,0.06,195.25,195.24,27.85485922]
[1753120400832,0.06,195.25,195.24,17.28468397]
[1753120401925,0.06,195.25,195.24,27.85485922]
[1753120402135,0.06,195.25,195.24,34.20895058]
[1753120403133,0.06,195.25,195.24,73.74895058]
[1753120404649,0.06,195.25,195.24,84.31912583]
[1753120404828,0.1,195.34,195.26,53.35485922]
[1753120405031,0.1,195.34,195.33,10.57017525]
[1753120405230,0.1,195.34,195.33,27.35485922]
[1753120405541,0.1,195.34,195.33,10.57017525]
[1753120405958,0.1,195.34,195.32,16.78468397]
[1753120406162,0.1,195.34,195.32,27.35485922]
[1753120406336,0.1,195.34,195.33,10.57017525]
[1753120406865,0.1,195.34,195.33,11.80212937]
[1753120407026,0.1,195.34,195.33,16.92167065]
[1753120407557,0.1,195.34,195.33,17.42167065]
[1753120408137,0.1,195.34,195.33,34.20635462]
[1753120408634,11.24017525,195.46,195.33,34.20635462]
[1753120408635,5.11535116,195.49,195.41,16.78468397]
[1753120408949,5.11535116,195.49,195.45,10.57017525]
[1753120409154,0.67,195.48,195.45,10.57017525]
[1753120409457,0.67,195.51,195.46,10.57017525]
[1753120409637,0.67,195.51,195.47,10.57017525]
[1753120409952,5.78489964,195.51,195.47,10.57017525]
[1753120410153,5.11489964,195.51,195.45,16.78468397]
[1753120410334,5.11489964,195.51,195.47,10.57017525]
[1753120410966,0.67,195.51,195.47,10.57017525]
[1753120411269,5.11456628,195.52,195.47,10.57017525]
[1753120411453,0.66,195.51,195.47,10.57017525]
[1753120411957,5.11456628,195.52,195.47,10.57017525]
[1753120412136,5.77456628,195.52,195.48,10.57017525]
[1753120412332,0.1,195.54,195.5,10.57017525]
[1753120412558,0.1,195.54,195.51,10.57017525]
[1753120412939,5.2141292,195.54,195.51,10.57017525]
[1753120413462,0.1,195.54,195.53,27.35485922]
[1753120413971,0.1,195.54,195.53,28.04485922]
[1753120415173,0.1,195.54,195.53,27.35485922]
[1753120415769,0.1,195.54,195.53,67.46485922]
[1753120416353,0.1,195.54,195.53,56.20468397]
[1753120416558,0.1,195.54,195.53,27.35485922]
[1753120416967,0.1,195.54,195.53,10.57017525]
[1753120417190,5.21404316,195.54,195.52,16.78468397]
[1753120417366,0.1,195.54,195.52,16.78468397]
[1753120417667,0.1,195.54,195.52,27.35485922]
[1753120417865,0.1,195.54,195.52,16.78468397]
[1753120418072,0.1,195.54,195.52,27.35485922]
[1753120418774,0.1,195.54,195.52,28.04485922]
[1753120418944,0.1,195.54,195.53,10.57017525]
[1753120419142,0.1,195.54,195.52,27.35485922]
[1753120419361,0.1,195.54,195.53,10.57017525]
[1753120419568,0.1,195.54,195.53,11.26017525]
[1753120419753,0.1,195.54,195.53,11.77160572]
[1753120420946,0.1,195.54,195.53,16.88591043]
[1753120422573,0.1,195.54,195.53,16.78468397]
[1753120422782,0.1,195.54,195.53,27.35485922]
[1753120422955,0.1,195.54,195.53,28.04485922]
[1753120423356,0.1,195.54,195.53,67.38485922]
[1753120424055,0.1,195.54,195.53,27.35485922]
[1753120424255,0.1,195.54,195.53,10.57017525]
[1753120424456,0.1,195.54,195.53,27.35485922]
[1753120425780,0.1,195.54,195.53,10.57017525]
[1753120425984,0.1,195.54,195.53,11.26017525]
[1753120426857,5.21404694,195.54,195.51,66.67485922]
[1753120427065,0.1,195.54,195.52,10.57017525]
[1753120427569,0.1,195.54,195.53,27.35485922]
[1753120427770,0.1,195.54,195.53,28.04485922]
[1753120428881,0.1,195.54,195.53,27.35485922]
[1753120429481,0.1,195.54,195.53,16.78468397]
[1753120429685,0.1,195.54,195.53,27.35485922]
[1753120429864,0.1,195.54,195.52,39.3]
[1753120430064,0.1,195.54,195.53,27.35485922]
[1753120430760,0.1,195.54,195.53,28.55628969]
[1753120430993,0.1,195.54,195.53,54.55628969]
[1753120431288,0.1,195.54,195.53,33.6705944]
[1753120435701,0.06,195.58,195.57,42.78468397]
[1753120436002,0.06,195.58,195.57,93.10618508]
[1753120436171,0.66,195.71,195.67,16.78468397]
[1753120436375,10.57017525,195.73,195.67,27.35485922]
[1753120436597,0.66,195.7,195.67,27.35485922]
[1753120436977,6.6729942,195.72,195.68,10.57017525]
[1753120437179,1.0636,195.72,195.7,10.57017525]
[1753120437491,0.66,195.71,195.67,0.51106454]
[1753120437690,0.66,195.7,195.67,10.57017525]
[1753120437894,5.10914744,195.73,195.68,10.57017525]
[1753120438193,0.66,195.72,195.68,10.57017525]
[1753120438389,0.66,195.71,195.68,10.57017525]
[1753120438999,0.66,195.7,195.68,10.57017525]
[1753120439204,0.66,195.7,195.67,10.57017525]
[1753120439671,5.7693419,195.72,195.68,10.57017525]
[1753120439876,0.66,195.72,195.69,27.35485922]
[1753120440198,5.76943623,195.72,195.69,10.57017525]
[1753120440487,0.66,195.72,195.69,10.57017525]
[1753120440868,0.1,195.74,195.72,16.78468397]
[1753120441072,0.1,195.74,195.7,39.18]
[1753120441385,0.68,195.73,195.7,16.78468397]
[1753120441686,0.68,195.72,195.68,27.35485922]
[1753120442081,0.68,195.72,195.68,32.46516995]
[1753120442298,0.68,195.71,195.68,10.57017525]
[1753120442476,0.68,195.71,195.69,10.57017525]
[1753120442804,0.68,195.71,195.68,10.57017525]
[1753120443097,0.68,195.7,195.68,10.57017525]
[1753120443876,0.68,195.7,195.67,27.35485922]
[1753120444186,0.68,195.69,195.67,27.35485922]
[1753120444580,0.68,195.71,195.68,10.57017525]
[1753120444978,0.68,195.71,195.67,27.86592376]
[1753120445283,0.68,195.7,195.67,27.35485922]
[1753120447090,5.84937123,195.72,195.67,27.86592376]
[1753120447377,5.84937123,195.72,195.67,27.35485922]
[1753120447879,5.84937123,195.72,195.67,16.78468397]
[1753120447880,17.60827525,195.71,195.67,16.78468397]
[1753120448181,6.3581,195.71,195.67,27.35485922]
[1753120448502,0.68,195.7,195.67,16.78468397]
[1753120449097,0.68,195.7,195.67,27.35485922]
[1753120449302,0.68,195.7,195.67,23.36220314]
[1753120449799,0.68,195.7,195.62,6.57751917]
[1753120449800,6.57751917,195.68,195.62,6.57751917]
[1753120449999,6.57751917,195.68,195.6,5.11243249]
[1753120450000,0.68,195.67,195.63,23.36220314]
[1753120450308,0.68,195.67,195.62,23.36220314]
[1753120450477,0.68,195.66,195.62,23.36220314]
[1753120450873,12.14774236,195.71,195.65,16.78468397]
[1753120451073,7.0381,195.71,195.66,32.57751917]
[1753120451310,6.3581,195.71,195.67,11.20375636]
[1753120451478,0.06,195.72,195.68,16.78468397]
[1753120451685,0.06,195.72,195.68,27.30844033]
[1753120452500,0.06,195.72,195.68,27.98844033]
[1753120452678,0.06,195.72,195.69,10.52375636]
[1753120455178,0.06,195.72,195.7,10.52375636]
[1753120455516,0.06,195.72,195.71,10.52375636]
[1753120456279,0.06,195.72,195.71,27.30844033]
[1753120456485,0.06,195.72,195.71,27.98844033]
[1753120456912,0.06,195.72,195.71,27.30844033]
[1753120458192,0.06,195.72,195.7,10.52375636]
[1753120458719,0.06,195.72,195.71,27.98844033]
[1753120459018,0.06,195.72,195.71,28.49940042]
[1753120459217,0.06,195.72,195.71,32.92900136]
[1753120459516,0.06,195.72,195.71,33.60900136]
[1753120462411,0.06,195.72,195.71,28.49940042]
[1753120462712,0.06,195.72,195.71,23.085245]
[1753120462902,0.06,195.72,195.71,33.60900136]
[1753120463103,0.06,195.72,195.71,27.81940042]
[1753120463298,0.74,195.72,195.66,0.51109066]
[1753120463501,0.74,195.72,195.68,10.52375636]
[1753120463714,0.74,195.72,195.69,10.52375636]
[1753120464023,5.84938399,195.72,195.68,10.52375636]
[1753120464391,0.74,195.72,195.69,10.52375636]
[1753120464596,0.06,195.72,195.71,10.52375636]
[1753120464813,0.06,195.72,195.71,11.03471645]
[1753120465113,0.06,195.72,195.71,11.71471645]
[1753120465700,0.06,195.72,195.71,44.13275772]
[1753120466725,0.06,195.72,195.71,33.60900136]
[1753120467110,0.06,195.72,195.71,34.10900136]
[1753120467428,0.06,195.72,195.71,44.63275772]
[1753120468121,0.06,195.72,195.71,34.10900136]
[1753120468328,0.06,195.72,195.71,23.585245]
[1753120468504,0.06,195.72,195.71,34.10900136]
[1753120469019,0.06,195.72,195.71,44.63275772]
[1753120472499,0.1,195.74,195.73,27.30844033]
[1753120472700,0.1,195.74,195.73,66.73934821]
[1753120472921,0.1,195.74,195.73,67.39934821]
[1753120473815,0.1,195.74,195.73,72.50842704]
[1753120474845,0.1,195.74,195.73,72.48842704]
[1753120475131,0.1,195.74,195.73,56.19559185]
[1753120475301,0.1,195.74,195.73,0.51090788]
[1753120475500,0.78,195.74,195.72,16.78468397]
[1753120475715,0.68,195.73,195.71,0.5]
[1753120475927,0.68,195.72,195.71,0.5]
[1753120476114,0.1,195.74,195.72,0.66]
[1753120476319,0.1,195.74,195.73,62.8969235]
[1753120477139,0.1,195.74,195.73,66.83446844]
[1753120477928,0.1,195.74,195.73,61.4337628]
[1753120478134,0.1,195.74,195.73,72.45445515]
[1753120478309,0.1,195.74,195.73,61.94467068]
[1753120478507,0.1,195.74,195.73,72.45445515]
[1753120479028,0.06,195.76,195.75,16.78468397]
[1753120479332,0.06,195.76,195.75,66.68532412]
[1753120479631,0.06,195.76,195.75,67.34532412]
[1753120479820,0.06,195.76,195.75,28.46532412]
[1753120480131,0.06,195.76,195.75,72.43388095]
[1753120480702,0.06,195.76,195.75,71.77388095]
[1753120481436,0.06,195.76,195.75,72.43388095]
[1753120481809,0.06,195.76,195.75,66.66532412]
[1753120482251,0.06,195.76,195.75,32.91388095]
[1753120483910,0.06,195.76,195.74,14.99344647]
[1753120484114,0.68,195.75,195.74,4.483662]
[1753120491050,17.08478447,195.76,195.72,16.78468397]
[1753120491239,0.06,195.76,195.74,16.78468397]
[1753120491643,0.74,195.76,195.74,16.78468397]
[1753120492352,0.74,195.76,195.73,16.78468397]
[1753120492845,0.06,195.76,195.73,16.78468397]
[1753120493531,0.06,195.76,195.72,15.61908275]
[1753120493532,11.18978447,195.75,195.71,0.5]
[1753120493731,0.68,195.74,195.71,0.5]
[1753120494153,0.06,195.76,195.73,10.50978447]
[1753120494342,0.06,195.76,195.74,1.17088178]
[1753120494546,0.06,195.76,195.74,0.66]
[1753120494755,0.06,195.76,195.73,16.12955811]
[1753120494932,0.06,195.76,195.74,10.50978447]
[1753120495336,0.06,195.76,195.75,27.80532412]
[1753120495557,0.06,195.76,195.75,28.46532412]
[1753120495852,0.06,195.76,195.75,27.80532412]
[1753120496154,0.06,195.76,195.75,27.29446844]
[1753120496658,0.06,195.76,195.75,32.40302527]
[1753120497149,0.06,195.76,195.75,21.8932408]
[1753120497375,0.06,195.76,195.75,28.46515645]
[1753120497531,0.06,195.76,195.73,45.33191565]
[1753120497733,0.06,195.76,195.73,45.84282353]
[1753120499256,0.06,195.76,195.73,50.44093167]
[1753120499561,0.06,195.76,195.74,23.8674814]
[1753120499778,0.06,195.76,195.74,23.35659962]
[1753120500272,0.06,195.76,195.75,7.74277133]
[1753120500440,0.06,195.76,195.75,6.57191565]
[1753120500642,0.06,195.76,195.74,17.44468397]
[1753120500865,0.06,195.76,195.75,6.57191565]
[1753120501161,0.06,195.76,195.75,11.68047248]
[1753120501458,0.06,195.76,195.75,12.39047248]
[1753120501654,0.06,195.76,195.75,7.28191565]
[1753120501973,0.06,195.76,195.75,6.57191565]
[1753120502471,38.76522017,195.85,195.75,6.57191565]
[1753120502472,4.26637447,196.07,195.78,15.36]
[1753120502778,0.71,196.03,195.96,32.57191565]
[1753120502944,0.71,196.06,195.97,39.96028218]
[1753120503261,6.57191565,196.1,195.98,10.48819976]
[1753120503264,16.29899454,196.05,195.98,10.48819976]
[1753120503460,4.10649014,196.1,195.96,10.48819976]
[1753120503461,0.71,196.04,195.96,10.48819976]
[1753120503665,0.71,196.04,195.99,10.48819976]
[1753120503973,0.71,196.04,195.97,38.74]
[1753120504147,10.48819976,196.0,195.93,10.48819976]
[1753120504355,11.19819976,195.99,195.92,10.48819976]
[1753120504668,0.71,195.98,195.94,10.48819976]
[1753120505170,0.71,195.98,195.94,15.59177041]
[1753120505359,0.71,195.98,195.95,10.48819976]
[1753120505660,6.4138,196.0,195.95,10.48819976]
[1753120506049,0.71,195.99,195.95,10.48819976]
[1753120506652,6.4138,196.0,195.96,10.48819976]
[1753120506857,7.1238,196.0,195.96,10.48819976]
[1753120507463,7.1238,196.0,195.97,15.59102162]
[1753120507853,6.4138,196.0,195.97,15.59102162]
[1753120508652,6.4738,196.0,195.97,15.59102162]
[1753120509260,0.71,195.99,195.95,10.48819976]
[1753120509564,0.71,195.99,195.91,5.10438466]
[1753120509565,6.4738,196.0,195.96,10.48819976]
[1753120509753,7.1838,196.0,195.96,10.48819976]
[1753120509954,7.1838,196.0,195.97,10.48819976]
[1753120510157,6.4738,196.0,195.97,10.48819976]
[1753120510570,0.06,196.0,195.99,10.48819976]
[1753120511146,0.06,196.0,195.98,10.48819976]
[1753120511455,0.06,196.0,195.99,10.48819976]
[1753120512255,0.06,196.0,195.98,10.36176856]
[1753120512449,0.06,196.0,195.99,16.78468397]
[1753120512649,0.06,196.0,195.99,27.27288373]
[1753120513151,11.25819976,196.0,195.93,36.48819976]
[1753120513358,16.30050089,195.99,195.93,36.48819976]
[1753120513571,0.71,195.98,195.93,36.48819976]
[1753120513753,0.71,195.98,195.93,16.78468397]
[1753120513754,0.71,195.97,195.93,16.78468397]
[1753120514279,0.71,195.97,195.93,27.27288373]
[1753120514478,0.06,196.0,195.96,42.78468397]
[1753120514802,0.06,196.0,195.99,27.27288373]
[1753120515153,0.06,196.0,195.99,32.37518486]
[1753120516662,1e-08,196.0,195.99,59.59541497]
[1753120517258,6.4706,196.11,195.99,46.35116781]
[1753120517574,6.069,196.16,196.11,16.78468397]
[1753120517761,6.069,196.16,196.15,10.48819976]
[1753120517957,6.069,196.16,196.13,16.78468397]
[1753120517958,6.69663084,196.19,196.14,10.48819976]
[1753120518165,1.5994,196.19,196.14,10.48819976]
[1753120518368,1.5994,196.19,196.13,17.29454987]
[1753120518554,1.5994,196.19,196.15,10.48819976]
[1753120518761,5.09687351,196.2,196.15,10.48819976]
[1753120518969,16.08507327,196.2,196.14,10.48819976]
[1753120520067,5.09687351,196.2,196.15,10.48819976]
[1753120520378,5.09687351,196.2,196.15,27.27288373]
[1753120521678,5.09687351,196.2,196.16,10.48819976]
[1753120521886,11.16559477,196.21,196.17,10.48819976]
[1753120522265,10.16559477,196.21,196.17,10.48819976]
[1753120522664,10.66559477,196.21,196.17,10.48819976]
[1753120522871,0.5,196.2,196.17,10.48819976]
[1753120523163,0.5,196.2,196.17,16.78468397]
[1753120523368,10.16559477,196.21,196.17,27.27288373]
[1753120523857,10.98819976,196.2,196.14,10.48819976]
[1753120524163,10.16559477,196.21,196.17,10.48819976]
[1753120524359,10.16559477,196.21,196.18,11.19819976]
[1753120524567,20.65379453,196.21,196.16,11.19819976]
[1753120524786,10.48819976,196.17,196.11,10.48819976]
[1753120525370,5.59787928,196.16,196.07,10.48819976]
[1753120525678,0.5,196.15,196.08,10.48819976]
[1753120525878,10.48819976,196.13,196.07,10.48819976]
[1753120526298,39.06,196.15,196.08,16.78468397]
[1753120526484,15.58607904,196.16,196.1,27.27288373]
[1753120526674,5.09787928,196.16,196.1,27.27288373]
[1753120526996,10.48819976,196.15,196.1,27.27288373]
[1753120527187,15.58585117,196.17,196.12,27.27288373]
[1753120527395,5.09765141,196.17,196.12,27.98288373]
[1753120527578,15.58585117,196.17,196.12,27.98288373]
[1753120527780,5.15765141,196.17,196.13,0.71]
[1753120528075,10.48819976,196.16,196.1,10.48819976]
[1753120528270,10.48819976,196.15,196.09,27.27288373]
[1753120528474,10.48819976,196.16,196.1,11.19819976]
[1753120528675,31.15765141,196.17,196.1,0.71]
[1753120528890,10.48819976,196.16,196.1,11.19819976]
[1753120529096,10.48819976,196.15,196.1,0.71]
[1753120529395,10.48819976,196.16,196.1,11.19819976]
[1753120529577,5.09813917,196.15,196.1,10.94819976]
[1753120529815,15.58633893,196.15,196.1,0.46]
[1753120530187,5.09813917,196.15,196.1,0.46]
[1753120530384,5.09813917,196.15,196.1,10.94819976]
[1753120530791,15.58633893,196.15,196.09,27.27288373]
[1753120531490,10.48819976,196.14,196.09,16.78468397]
[1753120531696,15.58633893,196.15,196.09,27.27288373]
[1753120531991,15.58633893,196.15,196.1,10.48819976]
[1753120532177,5.09813917,196.15,196.1,0.66]
[1753120532376,10.48819976,196.11,196.04,16.78468397]
[1753120532610,10.48819976,196.1,196.04,27.27288373]
[1753120532779,0.72,196.12,196.04,16.78468397]
[1753120532780,10.48819976,196.09,196.04,16.78468397]
[1753120533183,0.72,196.12,196.04,16.78468397]
[1753120533378,5.0999592,196.08,196.04,27.27288373]
[1753120533588,15.58815896,196.08,196.04,16.78468397]
[1753120533798,5.0999592,196.08,196.04,27.27288373]
[1753120534013,16.30788963,196.1,196.04,27.93288373]
[1753120534710,10.48819976,196.05,195.99,0.03]
[1753120534896,10.48819976,196.02,195.99,0.03]
[1753120535385,5.10178052,196.01,195.99,0.03]
[1753120537212,0.72,196.0,195.99,0.03]
[1753120537412,11.20819976,196.0,195.99,0.03]
[1753120537794,10.48819976,196.0,195.99,0.03]
[1753120537994,15.58998028,196.01,195.99,0.03]
[1753120539319,11.20819976,196.0,195.99,0.03]
[1753120539697,0.72,196.0,195.99,0.03]
[1753120539919,11.20819976,196.0,195.99,0.03]
[1753120540992,26.0,196.0,195.99,0.03]
[1753120541317,15.59024057,196.0,195.99,0.03]
[1753120541502,42.31024057,196.0,195.99,0.03]
[1753120541906,80.81024057,196.0,195.99,0.03]
[1753120542613,42.31024057,196.0,195.99,0.03]
[1753120542818,31.10204081,196.0,195.99,0.03]
[1753120542996,69.60204081,196.0,195.99,0.03]
[1753120543531,0.72,196.08,196.0,16.78468397]
[1753120543701,16.75679976,196.1,196.04,27.27288373]
[1753120543901,38.5,196.09,196.04,27.93288373]
[1753120544403,11.20819976,196.08,196.02,10.48819976]
[1753120544604,0.72,196.08,196.01,0.66]
[1753120544837,5.09976157,196.09,196.04,10.48819976]
[1753120545125,43.60004326,196.08,196.03,16.78468397]
[1753120545420,43.60004326,196.08,196.04,11.14819976]
[1753120546310,43.60004326,196.08,196.03,27.27288373]
[1753120546508,38.48,196.07,196.03,27.27288373]
[1753120546706,38.48,196.07,196.03,17.44468397]
[1753120546918,38.48,196.07,196.03,27.93288373]
[1753120547426,10.0,196.17,196.01,26.0]
[1753120547427,0.06,196.15,196.07,16.78468397]
[1753120547608,5.15815896,196.15,196.1,10.48819976]
[1753120547924,54.12635872,196.15,196.09,16.78468397]
[1753120548114,54.12635872,196.15,196.09,27.27288373]
[1753120548306,38.54,196.15,196.11,10.48819976]
[1753120548502,38.54,196.15,196.12,11.14819976]
[1753120548730,38.54,196.15,196.13,0.66]
[1753120549019,38.54,196.15,196.14,0.66]
[1753120549208,38.54,196.15,196.09,0.50996991]
[1753120549209,38.54,196.15,196.12,10.48819976]
[1753120549407,38.54,196.15,196.13,0.66]
[1753120550525,0.06,196.15,196.14,0.66]
[1753120550708,0.06,196.15,196.14,11.14819976]
[1753120550911,0.06,196.15,196.14,0.66]
[1753120552219,0.06,196.15,196.14,11.14819976]
[1753120552419,0.06,196.15,196.11,0.5099179]
[1753120552805,0.06,196.15,196.13,10.48819976]
[1753120553332,0.06,196.15,196.14,11.14819976]
[1753120554611,0.06,196.15,196.14,0.66]
[1753120554926,0.06,196.15,196.14,11.14819976]
[1753120555129,0.06,196.15,196.14,0.66]
[1753120555325,0.06,196.15,196.14,10.48819976]
[1753120555905,0.06,196.15,196.14,11.14819976]
[1753120556106,0.06,196.15,196.14,0.66]
[1753120556626,0.06,196.15,196.11,26.0]
[1753120556926,0.06,196.15,196.12,10.48819976]
[1753120557113,0.06,196.15,196.12,11.14819976]
[1753120557625,0.06,196.15,196.12,0.66]
[1753120557817,0.06,196.15,196.13,10.48819976]
[1753120558321,0.06,196.15,196.13,0.66]
[1753120558626,0.06,196.15,196.13,11.14819976]
[1753120560006,0.06,196.15,196.13,0.66]
[1753120560205,0.06,196.15,196.13,10.48819976]
[1753120560533,0.06,196.15,196.14,11.14819976]
[1753120563104,0.06,196.15,196.14,7.20589888]
[1753120563624,0.06,196.15,196.14,7.25589888]
[1753120564243,0.06,196.15,196.14,29.64882186]
[1753120564758,0.06,196.15,196.12,0.71]
[1753120565044,0.06,196.15,196.14,6.54589888]
[1753120565249,0.06,196.15,196.13,6.54589888]
[1753120565422,0.06,196.15,196.14,6.54589888]
[1753120565622,0.06,196.15,196.14,7.25589888]
[1753120566141,0.06,196.15,196.14,0.71]
[1753120566327,0.06,196.15,196.12,6.54589888]
[1753120566944,0.06,196.15,196.13,7.25589888]
[1753120567124,0.06,196.15,196.14,7.25589888]
[1753120569038,0.06,196.15,196.1,0.5099439]
[1753120569238,0.06,196.15,196.11,16.78468397]
[1753120569653,0.06,196.15,196.1,0.71]
[1753120569860,0.06,196.15,196.1,7.25589888]
[1753120570032,0.06,196.15,196.11,6.54589888]
[1753120570431,0.06,196.15,196.1,7.25589888]
[1753120570946,0.06,196.15,196.11,6.54589888]
[1753120571128,0.06,196.15,196.12,6.54589888]
[1753120571332,0.06,196.15,196.13,6.54589888]
[1753120571532,0.06,196.15,196.11,0.71]
[1753120571732,0.06,196.15,196.12,7.25589888]
[1753120571934,0.06,196.15,196.13,7.25589888]
[1753120572335,0.06,196.15,196.13,6.54589888]
[1753120572534,0.06,196.15,196.14,0.71]
[1753120572747,0.06,196.15,196.13,6.54589888]
[1753120573060,0.06,196.15,196.13,0.71]
[1753120574753,7.26589888,196.15,196.09,7.25589888]
[1753120575058,0.06,196.15,196.11,6.54589888]
[1753120575444,0.06,196.15,196.11,7.25589888]
[1753120577365,0.06,196.15,196.11,6.54589888]
[1753120577560,0.06,196.15,196.14,23.33058285]
[1753120577973,0.06,196.15,196.14,24.04058285]
[1753120578142,0.06,196.15,196.14,29.64882186]
[1753120578339,6.3141,196.27,196.15,16.78468397]
[1753120578542,6.3141,196.27,196.24,6.54589888]
[1753120578762,1.5286,196.29,196.24,7.25589888]
[1753120579066,8.07449888,196.29,196.24,0.71]
[1753120579570,6.54589888,196.26,196.21,6.54589888]
[1753120579947,7.20589888,196.26,196.21,6.54589888]
[1753120580146,6.54589888,196.27,196.21,6.54589888]
[1753120580460,7.20589888,196.28,196.22,6.54589888]
[1753120581050,6.54589888,196.27,196.21,12.35245514]
[1753120581251,6.54589888,196.28,196.23,6.54589888]
[1753120581567,44.86589888,196.3,196.24,7.25589888]
[1753120581771,32.2158,196.32,196.24,7.25589888]
[1753120581772,6.2158,196.32,196.26,6.54589888]